[Event "Early-Titled-Tuesday-Blitz-January-16-2024"]
[Site "Chess.com"]
[Date "2024.01.16"]
[Round "4"]
[White "Mihajlovskij"]
[Black "Predator0608"]
[Result "0-1"]
[WhiteElo "2225"]
[BlackElo "2470"]
[TimeControl "180+1"]
[EndTime "8:41:07 PST"]
[Termination "Predator0608 won by resignation"]

1. e4 {[%clk 0:03:00.9]} 1... d6 {[%clk 0:02:56.7]} 2. d4 {[%clk 0:02:59.3]}
2... e6 {[%clk 0:02:57.6]} 3. Nc3 {[%clk 0:02:49.6]} 3... Nd7 {[%clk 0:02:58.2]}
4. Nf3 {[%clk 0:02:49.3]} 4... Ne7 {[%clk 0:02:58.8]} 5. g3 {[%clk 0:02:48.1]}
5... b6 {[%clk 0:02:59.2]} 6. Bg2 {[%clk 0:02:48.6]} 6... Bb7 {[%clk 0:03:00.1]}
7. Bf1 {[%clk 0:02:49.5]} 7... g6 {[%clk 0:02:59.4]} 8. Bg2 {[%clk 0:02:49.7]}
8... Bg7 {[%clk 0:02:59.7]} 9. O-O {[%clk 0:02:50.3]} 9... O-O {[%clk
0:03:00.2]} 10. Qe2 {[%clk 0:02:48.9]} 10... a6 {[%clk 0:03:00]} 11. Rd1 {[%clk
0:02:48.5]} 11... b5 {[%clk 0:03:00.3]} 12. Bg5 {[%clk 0:02:44.7]} 12... h6
{[%clk 0:02:59.7]} 13. Bxe7 {[%clk 0:02:43.5]} 13... Qxe7 {[%clk 0:03:00.6]} 14.
Qe3 {[%clk 0:02:41.8]} 14... Nb6 {[%clk 0:03:00.2]} 15. b3 {[%clk 0:02:39.5]}
15... c5 {[%clk 0:02:59.9]} 16. dxc5 {[%clk 0:02:36.1]} 16... dxc5 {[%clk
0:03:00.8]} 17. Rac1 {[%clk 0:02:35.6]} 17... Rfd8 {[%clk 0:02:51.7]} 18. h4
{[%clk 0:02:30.2]} 18... Qc7 {[%clk 0:02:50.7]} 19. Ne2 {[%clk 0:02:22]} 19...
c4 {[%clk 0:02:46]} 20. h5 {[%clk 0:02:18.2]} 20... g5 {[%clk 0:02:41.6]} 21.
Nh2 {[%clk 0:02:11.3]} 21... Qc6 {[%clk 0:02:35.7]} 22. f4 {[%clk 0:01:59.8]}
22... Bf8 {[%clk 0:02:28.3]} 23. Kh1 {[%clk 0:01:57.8]} 23... Be7 {[%clk
0:02:19.7]} 24. Ng4 {[%clk 0:01:57.5]} 24... Kh7 {[%clk 0:02:16.1]} 25. Nd4
{[%clk 0:01:57.2]} 25... Qc5 {[%clk 0:02:14.1]} 26. c3 {[%clk 0:01:53.9]} 26...
gxf4 {[%clk 0:01:52.8]} 27. Qxf4 {[%clk 0:01:53.2]} 27... Qxh5+ {[%clk
0:01:51.8]} 28. Kg1 {[%clk 0:01:51.4]} 28... Bg5 {[%clk 0:01:46.2]} 29. Qf3
{[%clk 0:01:47]} 29... Qg6 {[%clk 0:01:19]} 30. Ne5 {[%clk 0:01:46.8]} 30... Qg7
{[%clk 0:01:19.3]} 31. Qxf7 {[%clk 0:01:25.2]} 31... Qxf7 {[%clk 0:00:53.2]} 32.
Nxf7 {[%clk 0:01:23.4]} 32... Bxc1 {[%clk 0:00:53.1]} 33. Rxc1 {[%clk
0:01:24.3]} 33... Rf8 {[%clk 0:00:45]} 34. Nd6 {[%clk 0:01:23.5]} 34... Ra7
{[%clk 0:00:41.6]} 35. Nxe6 {[%clk 0:01:17.1]} 35... Rf6 {[%clk 0:00:41]} 36.
Nxb7 {[%clk 0:01:10.6]} 36... Rxe6 {[%clk 0:00:40.2]} 37. Nc5 {[%clk 0:01:07.4]}
37... Re5 {[%clk 0:00:39.8]} 38. b4 {[%clk 0:01:06.7]} 38... Rg7 {[%clk
0:00:37.2]} 39. Rd1 {[%clk 0:01:02.5]} 39... Rxg3 {[%clk 0:00:31.6]} 40. Kh2
{[%clk 0:00:59.3]} 40... Rxc3 {[%clk 0:00:27.4]} 41. Rd6 {[%clk 0:00:59]} 41...
Na4 {[%clk 0:00:26]} 42. Nd7 {[%clk 0:00:48.5]} 42... Rh5+ {[%clk 0:00:22.8]}
43. Kg1 {[%clk 0:00:47.6]} 43... Rc1+ {[%clk 0:00:23.3]} 44. Kf2 {[%clk
0:00:47.6]} 44... Rc2+ {[%clk 0:00:23.8]} 45. Kg1 {[%clk 0:00:46.4]} 45... Rg5
{[%clk 0:00:23.5]} 46. Nf6+ {[%clk 0:00:43.9]} 46... Kg7 {[%clk 0:00:23.3]} 0-1

[Event "Early-Titled-Tuesday-Blitz-January-16-2024"]
[Site "Chess.com"]
[Date "2024.01.16"]
[Round "4"]
[White "Maestro-Fermin"]
[Black "igorkovalenko"]
[Result "0-1"]
[WhiteElo "2614"]
[BlackElo "2999"]
[TimeControl "180+1"]
[EndTime "8:41:08 PST"]
[Termination "igorkovalenko won by checkmate"]

1. d4 {[%clk 0:03:00.9]} 1... Nf6 {[%clk 0:02:59.2]} 2. Bg5 {[%clk 0:02:59.1]}
2... d5 {[%clk 0:02:58.6]} 3. e3 {[%clk 0:02:58.1]} 3... Nbd7 {[%clk 0:02:54.7]}
4. Bd3 {[%clk 0:02:50.8]} 4... h6 {[%clk 0:01:44.8]} 5. Bf4 {[%clk 0:02:39.7]}
5... c5 {[%clk 0:01:43.6]} 6. c3 {[%clk 0:02:38.9]} 6... Qb6 {[%clk 0:01:42.7]}
7. Qc1 {[%clk 0:02:22.7]} 7... Nh5 {[%clk 0:01:42.4]} 8. Nf3 {[%clk 0:02:18.1]}
8... g5 {[%clk 0:01:41.2]} 9. Be5 {[%clk 0:02:14.6]} 9... Nxe5 {[%clk
0:01:29.8]} 10. Nxe5 {[%clk 0:02:09.5]} 10... Bg7 {[%clk 0:01:29.9]} 11. O-O
{[%clk 0:02:07.7]} 11... O-O {[%clk 0:01:29.1]} 12. Nd2 {[%clk 0:02:07.6]} 12...
e6 {[%clk 0:01:10]} 13. Qc2 {[%clk 0:02:02.7]} 13... f5 {[%clk 0:01:08.9]} 14.
f4 {[%clk 0:02:00.2]} 14... cxd4 {[%clk 0:01:07.6]} 15. exd4 {[%clk 0:01:52.5]}
15... Nxf4 {[%clk 0:01:07.4]} 16. Rxf4 {[%clk 0:01:51.2]} 16... Bxe5 {[%clk
0:01:03.4]} 17. Rf2 {[%clk 0:01:48.1]} 17... Bg7 {[%clk 0:01:02.2]} 18. Nf3
{[%clk 0:01:48.6]} 18... g4 {[%clk 0:01:01.1]} 19. Ne5 {[%clk 0:01:46.7]} 19...
Bxe5 {[%clk 0:01:01.1]} 20. dxe5 {[%clk 0:01:47.6]} 20... Bd7 {[%clk 0:00:57.4]}
21. Qd2 {[%clk 0:01:47.8]} 21... Kg7 {[%clk 0:00:57.5]} 22. Re1 {[%clk
0:01:47.6]} 22... Rf7 {[%clk 0:00:54.9]} 23. g3 {[%clk 0:01:47.2]} 23... Raf8
{[%clk 0:00:48.9]} 24. Qf4 {[%clk 0:01:42.6]} 24... Bb5 {[%clk 0:00:46]} 25.
Bxb5 {[%clk 0:01:40.2]} 25... Qxb5 {[%clk 0:00:46.9]} 26. Kg2 {[%clk 0:01:38.8]}
26... Rc8 {[%clk 0:00:45.6]} 27. Qe3 {[%clk 0:01:34.1]} 27... b6 {[%clk
0:00:44]} 28. Rh1 {[%clk 0:01:34]} 28... Qc6 {[%clk 0:00:28.7]} 29. Qd4 {[%clk
0:01:32.1]} 29... Qc5 {[%clk 0:00:28.9]} 30. Rf4 {[%clk 0:01:28.1]} 30... Qb5
{[%clk 0:00:24.4]} 31. Rf2 {[%clk 0:01:26.1]} 31... Rc4 {[%clk 0:00:23.7]} 32.
Qd2 {[%clk 0:01:24.7]} 32... Qc6 {[%clk 0:00:23.6]} 33. Rc1 {[%clk 0:01:19.7]}
33... d4+ {[%clk 0:00:21.9]} 34. Kg1 {[%clk 0:01:20]} 34... Rd7 {[%clk
0:00:20.1]} 35. Qe1 {[%clk 0:01:11.8]} 35... dxc3 {[%clk 0:00:20.5]} 36. Rxc3
{[%clk 0:01:10]} 36... Rxc3 {[%clk 0:00:20.8]} 37. bxc3 {[%clk 0:01:10.5]} 37...
Rd3 {[%clk 0:00:20.9]} 38. Rd2 {[%clk 0:01:09.8]} 38... Qxc3 {[%clk 0:00:20.4]}
39. Re2 {[%clk 0:01:04.1]} 39... Qxe1+ {[%clk 0:00:20.2]} 40. Rxe1 {[%clk
0:01:04]} 40... Rd5 {[%clk 0:00:19.8]} 41. Rc1 {[%clk 0:01:02.2]} 41... Rxe5
{[%clk 0:00:19.3]} 42. Rc7+ {[%clk 0:01:01.9]} 42... Kf6 {[%clk 0:00:20.2]} 43.
Rxa7 {[%clk 0:01:02.7]} 43... Re2 {[%clk 0:00:20.2]} 44. Rb7 {[%clk 0:01:01.9]}
44... Rxa2 {[%clk 0:00:19.8]} 45. Rxb6 {[%clk 0:01:02.4]} 45... h5 {[%clk
0:00:19.8]} 46. Rb5 {[%clk 0:01:02.4]} 46... Re2 {[%clk 0:00:20]} 47. Rb6 {[%clk
0:01:01.9]} 47... Kg5 {[%clk 0:00:19.8]} 48. Rb8 {[%clk 0:01:00.4]} 48... e5
{[%clk 0:00:20.1]} 49. Rg8+ {[%clk 0:01:00.5]} 49... Kf6 {[%clk 0:00:20.7]} 50.
Rf8+ {[%clk 0:01:01]} 50... Kg6 {[%clk 0:00:21.6]} 51. Re8 {[%clk 0:01:01.1]}
51... e4 {[%clk 0:00:20.6]} 52. Re6+ {[%clk 0:01:01.2]} 52... Kg5 {[%clk
0:00:20.8]} 53. Re8 {[%clk 0:01:01]} 53... e3 {[%clk 0:00:20.8]} 54. Rg8+ {[%clk
0:01:01.2]} 54... Kf6 {[%clk 0:00:20.9]} 55. Rh8 {[%clk 0:01:01.5]} 55... Ke5
{[%clk 0:00:20.8]} 56. Rxh5 {[%clk 0:01:01.3]} 56... Ke4 {[%clk 0:00:21.5]} 57.
Rh8 {[%clk 0:01:01.2]} 57... Kf3 {[%clk 0:00:21.7]} 58. Rf8 {[%clk 0:01:01.2]}
58... Re1# {[%clk 0:00:22.1]} 0-1

[Event "Early-Titled-Tuesday-Blitz-January-16-2024"]
[Site "Chess.com"]
[Date "2024.01.16"]
[Round "4"]
[White "talaicito"]
[Black "LeninGuerra"]
[Result "0-1"]
[WhiteElo "2288"]
[BlackElo "2660"]
[TimeControl "180+1"]
[EndTime "8:41:08 PST"]
[Termination "LeninGuerra won on time"]

1. d4 {[%clk 0:03:00.9]} 1... Nf6 {[%clk 0:02:59.8]} 2. Nc3 {[%clk 0:03:00.9]}
2... e6 {[%clk 0:02:59.6]} 3. e4 {[%clk 0:02:59.1]} 3... d5 {[%clk 0:02:56.4]}
4. e5 {[%clk 0:02:59.1]} 4... Nfd7 {[%clk 0:02:56.9]} 5. Nce2 {[%clk 0:02:59.4]}
5... c5 {[%clk 0:02:57.1]} 6. c3 {[%clk 0:03:00]} 6... Nc6 {[%clk 0:02:57.5]} 7.
f4 {[%clk 0:03:00.6]} 7... cxd4 {[%clk 0:02:53]} 8. cxd4 {[%clk 0:03:00.4]} 8...
Qb6 {[%clk 0:02:52]} 9. Nf3 {[%clk 0:02:59.9]} 9... Bb4+ {[%clk 0:02:51.8]} 10.
Kf2 {[%clk 0:02:59.8]} 10... f6 {[%clk 0:02:48.9]} 11. Be3 {[%clk 0:02:56.1]}
11... O-O {[%clk 0:02:48.1]} 12. g3 {[%clk 0:02:36.1]} 12... fxe5 {[%clk
0:02:47]} 13. dxe5 {[%clk 0:02:35.5]} 13... Bc5 {[%clk 0:02:47.2]} 14. Bxc5
{[%clk 0:02:25.2]} 14... Nxc5 {[%clk 0:02:48.1]} 15. Ned4 {[%clk 0:02:08.5]}
15... Qxb2+ {[%clk 0:02:46]} 16. Be2 {[%clk 0:02:07.6]} 16... Ne4+ {[%clk
0:02:44.6]} 17. Kg2 {[%clk 0:02:07]} 17... Bd7 {[%clk 0:02:12.8]} 18. Rb1 {[%clk
0:02:02.5]} 18... Qxa2 {[%clk 0:02:12.9]} 19. Rxb7 {[%clk 0:02:01.1]} 19... Nxd4
{[%clk 0:02:07.7]} 20. Nxd4 {[%clk 0:01:57.6]} 20... Rfd8 {[%clk 0:02:02.6]} 21.
Qa1 {[%clk 0:01:43.6]} 21... Qd2 {[%clk 0:02:00.7]} 22. Qd1 {[%clk 0:01:27.1]}
22... Qe3 {[%clk 0:01:59.3]} 23. Rf1 {[%clk 0:01:25.7]} 23... Rab8 {[%clk
0:01:56]} 24. Rf3 {[%clk 0:01:10.1]} 24... Qd2 {[%clk 0:01:51.5]} 25. Rxa7
{[%clk 0:01:03.8]} 25... Rb2 {[%clk 0:01:45.7]} 26. Rd3 {[%clk 0:00:55]} 26...
Qxd1 {[%clk 0:01:44]} 27. Rxd1 {[%clk 0:00:54.5]} 27... Nc3 {[%clk 0:01:44.4]}
28. Re1 {[%clk 0:00:51]} 28... Rd2 {[%clk 0:01:41.7]} 29. Ra3 {[%clk 0:00:41.6]}
29... Rc8 {[%clk 0:01:32.6]} 30. Ra7 {[%clk 0:00:36]} 30... Be8 {[%clk
0:01:13.8]} 31. Nxe6 {[%clk 0:00:33.1]} 31... Nxe2 {[%clk 0:01:11.9]} 32. Rxg7+
{[%clk 0:00:31.6]} 32... Kh8 {[%clk 0:01:12.2]} 33. Kh3 {[%clk 0:00:22.8]} 33...
Bg6 {[%clk 0:01:10.7]} 34. Re7 {[%clk 0:00:19.4]} 34... Nc3 {[%clk 0:00:59.3]}
35. g4 {[%clk 0:00:16.7]} 35... Be4 {[%clk 0:00:55.1]} 36. f5 {[%clk 0:00:13.9]}
36... Ne2 {[%clk 0:00:53.9]} 37. Ng5 {[%clk 0:00:08]} 37... Nf4+ {[%clk
0:00:51]} 38. Kg3 {[%clk 0:00:08]} 38... Rc3+ {[%clk 0:00:50.5]} 39. Kxf4 {[%clk
0:00:07.2]} 39... Rf2+ {[%clk 0:00:50.9]} 40. Nf3 {[%clk 0:00:04.5]} 40... h6
{[%clk 0:00:41.3]} 0-1

[Event "Early-Titled-Tuesday-Blitz-January-16-2024"]
[Site "Chess.com"]
[Date "2024.01.16"]
[Round "4"]
[White "RandomNoob04"]
[Black "PavelShkapenko"]
[Result "1-0"]
[WhiteElo "2589"]
[BlackElo "2768"]
[TimeControl "180+1"]
[EndTime "8:41:09 PST"]
[Termination "RandomNoob04 won by resignation"]

1. e4 {[%clk 0:03:00.9]} 1... e5 {[%clk 0:02:59.6]} 2. d4 {[%clk 0:03:01.5]}
2... exd4 {[%clk 0:02:58.2]} 3. Qxd4 {[%clk 0:03:02.4]} 3... Nc6 {[%clk
0:02:57.9]} 4. Qe3 {[%clk 0:03:03.1]} 4... g6 {[%clk 0:02:51]} 5. Nc3 {[%clk
0:03:02.4]} 5... d6 {[%clk 0:02:48.1]} 6. Nf3 {[%clk 0:02:58.6]} 6... Bg4 {[%clk
0:02:46.2]} 7. Bc4 {[%clk 0:02:53.8]} 7... Bg7 {[%clk 0:02:43.8]} 8. Bd2 {[%clk
0:02:00.4]} 8... Nf6 {[%clk 0:02:35.4]} 9. Bb3 {[%clk 0:01:46.5]} 9... O-O
{[%clk 0:02:33.6]} 10. h3 {[%clk 0:01:45.3]} 10... Bxf3 {[%clk 0:02:29.8]} 11.
Qxf3 {[%clk 0:01:46.2]} 11... Nd4 {[%clk 0:02:29.6]} 12. Qd3 {[%clk 0:01:44]}
12... Nxb3 {[%clk 0:02:29.4]} 13. axb3 {[%clk 0:01:44.9]} 13... Re8 {[%clk
0:02:27.2]} 14. O-O {[%clk 0:01:45.2]} 14... Nd7 {[%clk 0:02:23.2]} 15. Be3
{[%clk 0:01:32.6]} 15... a6 {[%clk 0:02:20.2]} 16. Rad1 {[%clk 0:01:25.3]} 16...
Rc8 {[%clk 0:02:06.3]} 17. Bd4 {[%clk 0:01:23.2]} 17... Ne5 {[%clk 0:01:55.2]}
18. Qg3 {[%clk 0:01:20.4]} 18... c5 {[%clk 0:01:19.1]} 19. Be3 {[%clk
0:01:18.5]} 19... h5 {[%clk 0:01:19.6]} 20. Rd5 {[%clk 0:01:14.3]} 20... Qe7
{[%clk 0:01:12.9]} 21. Rfd1 {[%clk 0:01:13.8]} 21... Rcd8 {[%clk 0:01:06.5]} 22.
Bg5 {[%clk 0:00:59.8]} 22... Bf6 {[%clk 0:00:56.6]} 23. Bxf6 {[%clk 0:01:00.1]}
23... Qxf6 {[%clk 0:00:57.5]} 24. R5d2 {[%clk 0:00:56.2]} 24... h4 {[%clk
0:00:56.8]} 25. Nd5 {[%clk 0:00:53.5]} 25... Qe6 {[%clk 0:00:41.7]} 26. Qxh4
{[%clk 0:00:53.4]} 26... Kg7 {[%clk 0:00:42.1]} 27. Nc7 {[%clk 0:00:49]} 27...
Qc8 {[%clk 0:00:37.4]} 28. Nxe8+ {[%clk 0:00:47.1]} 28... Rxe8 {[%clk
0:00:38.3]} 29. Rxd6 {[%clk 0:00:45.6]} 29... Nc6 {[%clk 0:00:33.8]} 30. Qf6+
{[%clk 0:00:44]} 30... Kg8 {[%clk 0:00:34.1]} 31. Rd7 {[%clk 0:00:39.5]} 31...
Rf8 {[%clk 0:00:33.2]} 32. c3 {[%clk 0:00:30.7]} 32... Nd4 {[%clk 0:00:31]} 33.
Rd5 {[%clk 0:00:20.2]} 33... Ne6 {[%clk 0:00:30.8]} 34. e5 {[%clk 0:00:17.9]}
34... Qc6 {[%clk 0:00:27.7]} 35. Rd6 {[%clk 0:00:17.4]} 35... Qc8 {[%clk
0:00:27.5]} 36. f4 {[%clk 0:00:17.3]} 36... c4 {[%clk 0:00:23.9]} 37. b4 {[%clk
0:00:17.6]} 37... Qb8 {[%clk 0:00:22.1]} 38. Rxe6 {[%clk 0:00:17.2]} 38... fxe6
{[%clk 0:00:21.6]} 39. Qxg6+ {[%clk 0:00:17.8]} 39... Kh8 {[%clk 0:00:21.6]} 40.
Rd7 {[%clk 0:00:18.4]} 1-0

[Event "Early-Titled-Tuesday-Blitz-January-16-2024"]
[Site "Chess.com"]
[Date "2024.01.16"]
[Round "4"]
[White "Gryffindorac8"]
[Black "santosalberto1987"]
[Result "1-0"]
[WhiteElo "2358"]
[BlackElo "2508"]
[TimeControl "180+1"]
[EndTime "8:41:10 PST"]
[Termination "Gryffindorac8 won by checkmate"]

1. d4 {[%clk 0:03:00.9]} 1... d5 {[%clk 0:03:00.1]} 2. c4 {[%clk 0:03:01.1]}
2... c6 {[%clk 0:03:00.3]} 3. Nf3 {[%clk 0:03:01]} 3... Nf6 {[%clk 0:03:00.6]}
4. Nc3 {[%clk 0:03:01]} 4... dxc4 {[%clk 0:03:00.6]} 5. a4 {[%clk 0:03:00.9]}
5... Bf5 {[%clk 0:03:00.8]} 6. e3 {[%clk 0:02:58.9]} 6... e6 {[%clk 0:03:00.7]}
7. Bxc4 {[%clk 0:02:58.7]} 7... Bb4 {[%clk 0:03:01.2]} 8. O-O {[%clk 0:02:57]}
8... Nbd7 {[%clk 0:03:01.8]} 9. h3 {[%clk 0:02:39.4]} 9... O-O {[%clk
0:02:59.2]} 10. Nh4 {[%clk 0:02:36.1]} 10... Bg6 {[%clk 0:02:57.7]} 11. Nxg6
{[%clk 0:02:35.2]} 11... hxg6 {[%clk 0:02:58.6]} 12. Qb3 {[%clk 0:02:26.6]}
12... a5 {[%clk 0:02:58.3]} 13. Na2 {[%clk 0:01:55.2]} 13... Be7 {[%clk
0:02:25.5]} 14. Qxb7 {[%clk 0:01:47.6]} 14... Rb8 {[%clk 0:02:25.7]} 15. Qxc6
{[%clk 0:01:45.7]} 15... Rc8 {[%clk 0:01:57.3]} 16. Qb5 {[%clk 0:01:38.1]} 16...
Rb8 {[%clk 0:01:57.4]} 17. Qg5 {[%clk 0:00:56.1]} 17... Nd5 {[%clk 0:01:49.6]}
18. Qg4 {[%clk 0:00:53.5]} 18... N7b6 {[%clk 0:01:47]} 19. Qe2 {[%clk
0:00:48.6]} 19... Qc7 {[%clk 0:01:43.8]} 20. Bb5 {[%clk 0:00:46.2]} 20... Nb4
{[%clk 0:01:37.4]} 21. Nxb4 {[%clk 0:00:44.9]} 21... Bxb4 {[%clk 0:01:38.3]} 22.
Bd2 {[%clk 0:00:44.4]} 22... Nd5 {[%clk 0:01:38.9]} 23. Rac1 {[%clk 0:00:42.8]}
23... Qe7 {[%clk 0:01:39.2]} 24. Bxb4 {[%clk 0:00:39.4]} 24... Nxb4 {[%clk
0:01:36.6]} 25. Rc5 {[%clk 0:00:38.5]} 25... Rb7 {[%clk 0:01:33.3]} 26. Rfc1
{[%clk 0:00:38.4]} 26... Kh7 {[%clk 0:01:28.8]} 27. Qc4 {[%clk 0:00:33.9]} 27...
Qf6 {[%clk 0:01:23.6]} 28. Rc7 {[%clk 0:00:32.6]} 28... Rxc7 {[%clk 0:01:23.3]}
29. Qxc7 {[%clk 0:00:33.5]} 29... Nd5 {[%clk 0:01:14.6]} 30. Qxa5 {[%clk
0:00:32.3]} 30... Ne7 {[%clk 0:01:14.9]} 31. Qb4 {[%clk 0:00:27.7]} 31... Rb8
{[%clk 0:01:12.7]} 32. Qd6 {[%clk 0:00:25.3]} 32... Ra8 {[%clk 0:01:08.6]} 33.
Qe5 {[%clk 0:00:25.3]} 33... Qh4 {[%clk 0:01:07.3]} 34. Rc7 {[%clk 0:00:21.3]}
34... Nf5 {[%clk 0:00:52.5]} 35. Rxf7 {[%clk 0:00:19.8]} 35... Rc8 {[%clk
0:00:53]} 36. Kh2 {[%clk 0:00:16]} 36... Qxf2 {[%clk 0:00:52.2]} 37. Bd3 {[%clk
0:00:11.7]} 37... Rg8 {[%clk 0:00:33.9]} 38. Bxf5 {[%clk 0:00:11.8]} 38... exf5
{[%clk 0:00:34.7]} 39. d5 {[%clk 0:00:11.4]} 39... f4 {[%clk 0:00:30.1]} 40.
Qxf4 {[%clk 0:00:11.1]} 40... Qd2 {[%clk 0:00:29.8]} 41. Qh4# {[%clk 0:00:11.2]}
1-0

[Event "Early-Titled-Tuesday-Blitz-January-16-2024"]
[Site "Chess.com"]
[Date "2024.01.16"]
[Round "4"]
[White "Aygehovit1992"]
[Black "Nf3c5"]
[Result "0-1"]
[WhiteElo "2715"]
[BlackElo "2565"]
[TimeControl "180+1"]
[EndTime "8:41:11 PST"]
[Termination "Nf3c5 won by resignation"]

1. e4 {[%clk 0:00:54]} 1... e5 {[%clk 0:02:53]} 2. Nf3 {[%clk 0:00:53.9]} 2...
Nc6 {[%clk 0:02:51.9]} 3. Bb5 {[%clk 0:00:53.5]} 3... Nge7 {[%clk 0:02:51]} 4.
Nc3 {[%clk 0:00:52.7]} 4... Ng6 {[%clk 0:02:46.6]} 5. h4 {[%clk 0:00:51.8]} 5...
h5 {[%clk 0:02:34.2]} 6. d4 {[%clk 0:00:50.1]} 6... exd4 {[%clk 0:02:29]} 7.
Nxd4 {[%clk 0:00:51]} 7... Nxd4 {[%clk 0:02:24.5]} 8. Qxd4 {[%clk 0:00:50.3]}
8... c6 {[%clk 0:02:25.1]} 9. Be2 {[%clk 0:00:47.2]} 9... Qb6 {[%clk 0:02:23.7]}
10. Qxb6 {[%clk 0:00:46.5]} 10... axb6 {[%clk 0:02:23.1]} 11. Be3 {[%clk
0:00:46]} 11... b5 {[%clk 0:02:23]} 12. g3 {[%clk 0:00:42.3]} 12... Ne5 {[%clk
0:02:21.6]} 13. f4 {[%clk 0:00:42]} 13... Ng4 {[%clk 0:01:51.3]} 14. Bxg4 {[%clk
0:00:41.4]} 14... hxg4 {[%clk 0:01:52.2]} 15. e5 {[%clk 0:00:41.3]} 15... d5
{[%clk 0:01:46.6]} 16. exd6 {[%clk 0:00:41.1]} 16... Bxd6 {[%clk 0:01:46.1]} 17.
O-O-O {[%clk 0:00:41.8]} 17... Bb4 {[%clk 0:01:43.2]} 18. Bd4 {[%clk 0:00:41]}
18... O-O {[%clk 0:01:42.8]} 19. a3 {[%clk 0:00:40.2]} 19... Ba5 {[%clk
0:01:37.6]} 20. h5 {[%clk 0:00:37.9]} 20... Kh7 {[%clk 0:01:29.5]} 21. h6 {[%clk
0:00:35.8]} 21... f6 {[%clk 0:01:28]} 22. hxg7+ {[%clk 0:00:34.7]} 22... Kxg7
{[%clk 0:01:28.9]} 23. Ne4 {[%clk 0:00:34.3]} 23... Bf5 {[%clk 0:01:22.9]} 24.
Nd6 {[%clk 0:00:34.3]} 24... Be6 {[%clk 0:01:02]} 25. Nxb7 {[%clk 0:00:31.9]}
25... Bc7 {[%clk 0:01:01.1]} 26. Nc5 {[%clk 0:00:30.6]} 26... Bd5 {[%clk
0:01:01.2]} 27. Rhe1 {[%clk 0:00:30.8]} 27... Rae8 {[%clk 0:01:00.1]} 28. b3
{[%clk 0:00:22.6]} 28... Kf7 {[%clk 0:00:57.8]} 29. Kb2 {[%clk 0:00:22.3]} 29...
Bf3 {[%clk 0:00:57.4]} 30. Rc1 {[%clk 0:00:21.2]} 30... Bb6 {[%clk 0:00:55.3]}
31. b4 {[%clk 0:00:17.2]} 31... Bxc5 {[%clk 0:00:53.3]} 32. Bxc5 {[%clk
0:00:17.2]} 32... Rh8 {[%clk 0:00:53.8]} 33. Rxe8 {[%clk 0:00:15.9]} 33... Rxe8
{[%clk 0:00:53.9]} 34. a4 {[%clk 0:00:06.9]} 34... bxa4 {[%clk 0:00:52.7]} 35.
Ra1 {[%clk 0:00:06.9]} 35... Re2 {[%clk 0:00:51]} 36. Rxa4 {[%clk 0:00:05.8]}
36... Be4 {[%clk 0:00:51.2]} 37. Ra7+ {[%clk 0:00:05.7]} 37... Kg6 {[%clk
0:00:50.5]} 38. Re7 {[%clk 0:00:05.8]} 38... Rxc2+ {[%clk 0:00:49.6]} 39. Kb3
{[%clk 0:00:06.1]} 39... Re2 {[%clk 0:00:49]} 40. Re8 {[%clk 0:00:05.1]} 40...
Bd5+ {[%clk 0:00:46.9]} 41. Kc3 {[%clk 0:00:05.3]} 41... Rxe8 {[%clk 0:00:47.8]}
42. Kd4 {[%clk 0:00:05.1]} 42... Kf5 {[%clk 0:00:47.9]} 43. b5 {[%clk
0:00:05.3]} 43... Re4+ {[%clk 0:00:43.8]} 0-1

[Event "Early-Titled-Tuesday-Blitz-January-16-2024"]
[Site "Chess.com"]
[Date "2024.01.16"]
[Round "4"]
[White "DeArron_Fox"]
[Black "mbchess97"]
[Result "1-0"]
[WhiteElo "2422"]
[BlackElo "2260"]
[TimeControl "180+1"]
[EndTime "8:41:11 PST"]
[Termination "DeArron_Fox won by resignation"]

1. d4 {[%clk 0:03:00.9]} 1... Nf6 {[%clk 0:02:59]} 2. c4 {[%clk 0:03:00.7]} 2...
e6 {[%clk 0:02:59.1]} 3. Nf3 {[%clk 0:02:58.5]} 3... d5 {[%clk 0:02:59.3]} 4.
Nc3 {[%clk 0:02:58.4]} 4... Bb4 {[%clk 0:02:59.4]} 5. Qa4+ {[%clk 0:02:57.6]}
5... Nc6 {[%clk 0:02:59.1]} 6. e3 {[%clk 0:02:58.5]} 6... O-O {[%clk 0:02:57.5]}
7. Qc2 {[%clk 0:02:59.1]} 7... b6 {[%clk 0:02:52.9]} 8. Bd2 {[%clk 0:02:58.7]}
8... Ba6 {[%clk 0:02:44.9]} 9. Qa4 {[%clk 0:01:16.1]} 9... Bb7 {[%clk 0:02:44]}
10. Bd3 {[%clk 0:01:06.9]} 10... dxc4 {[%clk 0:02:30]} 11. Bxc4 {[%clk
0:01:06.7]} 11... Qe7 {[%clk 0:02:25.5]} 12. O-O {[%clk 0:01:04.8]} 12... a5
{[%clk 0:01:59.9]} 13. Ne2 {[%clk 0:00:43.5]} 13... Bxd2 {[%clk 0:01:35.9]} 14.
Nxd2 {[%clk 0:00:44.4]} 14... e5 {[%clk 0:01:36.2]} 15. d5 {[%clk 0:00:17]}
15... Nb4 {[%clk 0:01:35.8]} 16. e4 {[%clk 0:00:16.7]} 16... Na6 {[%clk
0:01:35.5]} 17. Qc2 {[%clk 0:00:13.2]} 17... Nd7 {[%clk 0:01:25.2]} 18. Ng3
{[%clk 0:00:12.2]} 18... g6 {[%clk 0:01:23.6]} 19. Rac1 {[%clk 0:00:05.2]} 19...
Nac5 {[%clk 0:01:08.4]} 20. a3 {[%clk 0:00:05]} 20... a4 {[%clk 0:01:07.3]} 21.
Qd1 {[%clk 0:00:05.2]} 21... Kh8 {[%clk 0:01:04.2]} 22. Qg4 {[%clk 0:00:04.7]}
22... f5 {[%clk 0:01:02.3]} 23. exf5 {[%clk 0:00:04.1]} 23... Nf6 {[%clk
0:00:59]} 24. Qh3 {[%clk 0:00:03.7]} 24... Bc8 {[%clk 0:00:54.7]} 25. Rce1
{[%clk 0:00:01.9]} 25... Qd6 {[%clk 0:00:44.9]} 26. f4 {[%clk 0:00:02]} 26... e4
{[%clk 0:00:43.5]} 27. Ngxe4 {[%clk 0:00:02.1]} 27... Ncxe4 {[%clk 0:00:37]} 28.
Nxe4 {[%clk 0:00:03]} 28... Nxe4 {[%clk 0:00:36.8]} 29. Rxe4 {[%clk 0:00:03.5]}
29... Bxf5 {[%clk 0:00:37]} 30. Qc3+ {[%clk 0:00:04.2]} 30... Qf6 {[%clk
0:00:32.6]} 31. Re5 {[%clk 0:00:03.6]} 31... Rae8 {[%clk 0:00:18.4]} 32. Rxe8
{[%clk 0:00:03.2]} 1-0